Workbook

Sheet فاتورة
B2: التاريخ
B3: السيد /
B4: رقم الفاتورة
B5: موبيل
B6: العنوان :
B7: وصف المنتج
B9: المواصفات
E10: يتم استدعاء الفورم و ترقيم الفاتورة تلقائي واختيار النموذج و ملئ (عرض-عمق-ارتفاع)
E11: ثم ترحليهم الي ورقة PRIC و استدعاء في التكست بوكس
E12: و يتم الضغط علي زر اضافة للترحيل الي ورقة فاتورة
E13: و ترحيل البينات الي ورقة العمل المناسبة (عدد 3 صفحات ) ثم تفرغ الحقول
E14: و البدء من جديد و زر حفظ يتم حفظ الفاتورة ( و كذلك البينات في اوراق العمل )
E15: زر تعديل و حذف يقرأ النماذج من الفاتورة في الكمبوبوكس
E16: و يتم التعامل كما سبق
B17: رقم الوجدة | C17: الوصف | E17: عرض | F17: عمق | G17: ارتفاع | I17: السعر
B18: =IF(C18="","",SUBTOTAL(3,$C$18:C18)) ->  | I18: =IFERROR(VLOOKUP(C18,PRIC!A10:CE30,83,FALSE),"") -> 
B19: =IF(C19="","",SUBTOTAL(3,$C$18:C19)) -> 
B20: =IF(C20="","",SUBTOTAL(3,$C$18:C20)) -> 
B21: =IF(C21="","",SUBTOTAL(3,$C$18:C21)) -> 
B22: =IF(C22="","",SUBTOTAL(3,$C$18:C22)) -> 
B23: =IF(C23="","",SUBTOTAL(3,$C$18:C23)) -> 
B24: =IF(C24="","",SUBTOTAL(3,$C$18:C24)) -> 
B25: =IF(C25="","",SUBTOTAL(3,$C$18:C25)) -> 
B26: =IF(C26="","",SUBTOTAL(3,$C$18:C26)) -> 
B27: =IF(C27="","",SUBTOTAL(3,$C$18:C27)) -> 
B28: =IF(C28="","",SUBTOTAL(3,$C$18:C28)) -> 
B29: =IF(C29="","",SUBTOTAL(3,$C$18:C29)) -> 
B30: =IF(C30="","",SUBTOTAL(3,$C$18:C30)) -> 
B31: =IF(C31="","",SUBTOTAL(3,$C$18:C31)) -> 
B32: =IF(C32="","",SUBTOTAL(3,$C$18:C32)) -> 
B33: =IF(C33="","",SUBTOTAL(3,$C$18:C33)) -> 
B34: =IF(C34="","",SUBTOTAL(3,$C$18:C34)) -> 
B35: =IF(C35="","",SUBTOTAL(3,$C$18:C35)) -> 
B36: =IF(C36="","",SUBTOTAL(3,$C$18:C36)) -> 
B37: =IF(C37="","",SUBTOTAL(3,$C$18:C37)) -> 
B38: =IF(C38="","",SUBTOTAL(3,$C$18:C38)) -> 
B39: =IF(C39="","",SUBTOTAL(3,$C$18:C39)) -> 
B40: =IF(C40="","",SUBTOTAL(3,$C$18:C40)) -> 
B41: =IF(C41="","",SUBTOTAL(3,$C$18:C41)) -> 
B42: =IF(C42="","",SUBTOTAL(3,$C$18:C42)) -> 
B43: =IF(C43="","",SUBTOTAL(3,$C$18:C43)) -> 
B44: =IF(C44="","",SUBTOTAL(3,$C$18:C44)) -> 
B45: =IF(C45="","",SUBTOTAL(3,$C$18:C45)) -> 
B46: =IF(C46="","",SUBTOTAL(3,$C$18:C46)) -> 
B47: =IF(C47="","",SUBTOTAL(3,$C$18:C47)) -> 
B48: اجمالي الوحدات | H48: =SUM(I18:I47) -> 0
B49: الخصم | H49: =H48*-F49 -> 0
B50: اجمالي الوحدات بعد الخصم | H50: =H49+H48 -> 0
C357: =فاتورة!E4 -> 0

Sheet Equation 1 (hidden)
B2: =(1-(ROUND(B4,0)-ROUND(B4,7))) -> 1 | D2: =(1-(ROUND(D4,0)-ROUND(D4,1))) -> 1 | F2: =(1-(ROUND(F4,0)-ROUND(F4,7))) -> 1 | H2: =(1-(ROUND(H4,0)-ROUND(H4,7))) -> 1 | J2: =(1-(ROUND(J4,0)-ROUND(J4,7))) -> 1 | L2: =(1-(ROUND(L4,0)-ROUND(L4,7))) -> 1 | N2: =(1-(ROUND(N4,0)-ROUND(N4,10))) -> 1 | P2: =(1-(ROUND(P4,0)-ROUND(P4,10))) -> 1 | R2: =(1-(ROUND(R4,0)-ROUND(R4,10))) -> 1 | T2: =(1-(ROUND(T4,0)-ROUND(T4,10))) -> 1
B3: =IF(B2<1,ROUND(B4-(1-(ROUND(B4,0)-ROUND(B4,1))),0),ROUND(B4,0)) -> 0 | D3: =IF(D2<1,ROUND(D4-(1-(ROUND(D4,0)-ROUND(D4,1))),0),ROUND(D4,0)) -> 0 | F3: =IF(F2<1,ROUND(F4-(1-(ROUND(F4,0)-ROUND(F4,1))),0),ROUND(F4,0)) -> 0 | H3: =IF(H2<1,ROUND(H4-(1-(ROUND(H4,0)-ROUND(H4,1))),0),ROUND(H4,0)) -> 0 | J3: =IF(J2<1,ROUND(J4-(1-(ROUND(J4,0)-ROUND(J4,1))),0),ROUND(J4,0)) -> 0 | L3: =IF(L2<1,ROUND(L4-(1-(ROUND(L4,0)-ROUND(L4,1))),0),ROUND(L4,0)) -> 0 | N3: =IF(N2<1,ROUND(N4-(1-(ROUND(N4,0)-ROUND(N4,1))),0),ROUND(N4,0)) -> 0 | P3: =IF(P2<1,ROUND(P4-(1-(ROUND(P4,0)-ROUND(P4,1))),0),ROUND(P4,0)) -> 0 | R3: =IF(R2<1,ROUND(R4-(1-(ROUND(R4,0)-ROUND(R4,1))),0),ROUND(R4,0)) -> 0 | T3: =IF(T2<1,ROUND(T4-(1-(ROUND(T4,0)-ROUND(T4,1))),0),ROUND(T4,0)) -> 0 | Y3: =فاتورة!D73 -> 0
B4: =(H4-H3)*10 -> 0 | D4: =(B4-B3)*10 -> 0 | F4: =(J4-J3)*10 -> 0 | H4: =(F4-F3)*10 -> 0 | J4: =(N4-N3)*10 -> 0 | L4: =(P4-P3)*10 -> 0 | N4: =(L4-L3)*10 -> 0 | P4: =(T4-T3)*10 -> 0 | R4: =Y3/10000000 -> 0 | T4: =(R4-R3)*10 -> 0 | Y4: =فاتورة!D73 -> 0
A5: =IF(SUM(B3:T3)<1,"",IF(B20<1,A6,IF(B20<3,A8,IF(B20>=11,A7,A9)))) ->  | B5: =IF(B3=C6,B6,IF(B3=C7,B7,IF(B3=C8,B8,IF(B3=C9,B9,IF(B3=C10,B10,B11))))) ->  | C5: =IF(B5=B6,"",IF(D3=0,"",IF(B$3>0.99999999999,"و",""))) ->  | D5: =IF(D3=E6,D6,IF(D3=E7,D7,IF(D3=E8,D8,IF(D3=E9,D9,IF(D3=E10,D10,D11))))) ->  | E5: =IF(SUM(F3:T3)>0,E11,"") ->  | F5: =IF(F3=G6,F6,IF(F3=G7,F7,IF(F3=G8,F8,IF(F3=G9,F9,IF(F3=G10,F10,F11))))) ->  | G5: =IF(F5=F6,G11,IF(H3+J3+L3+N3+P3+R3+T3=0,"",IF(F$3>0.99999999999,"و",""))) ->  | H5: =IF(H3=I6,H6,IF(H3=I7,H7,IF(H3=I8,H8,IF(H3=I9,H9,IF(H3=I10,H10,H11))))) ->  | I5: =IF(J3+L3+N3+P3+R3+T3=0,"",IF(H$3>0.99999999999,"و","")) ->  | J5: =IF(J3=K6,J6,IF(J3=K7,J7,IF(J3=K8,J8,IF(J3=K9,J9,IF(J3=K10,J10,J11))))) ->  | K5: =IF(L3+N3+P3+R3+T3=0,"",IF(J$3>0.99999999999,"و","")) ->  | L5: =IF(L3=M6,L6,IF(L3=M7,L7,IF(L3=M8,L8,IF(L3=M9,L9,IF(L3=M10,L10,L11))))) ->  | M5: =IF(L5=L6,M11,IF(N3+P3+R3+T3+V3=0,"",IF(L$3>0.99999999999,"و",""))) ->  | N5: =IF(N3=O6,N6,IF(N3=O7,N7,IF(N3=O8,N8,IF(N3=O9,N9,IF(N3=O10,N10,N11))))) ->  | O5: =IF(P3+R3+T3=0,"",IF(N$3>0.99999999999,"و","")) ->  | P5: =IF(P3=Q6,P6,IF(P3=Q7,P7,IF(P3=Q8,P8,IF(P3=Q9,P9,IF(P3=Q10,P10,P11))))) ->  | Q5: =IF(R3+T3=0,"",IF(P$3>0.99999999999,"و","")) ->  | R5: =IF(R3=S6,R6,IF(R3=S7,R7,IF(R3=S8,R8,IF(R3=S9,R9,IF(R3=S10,R10,R11))))) ->  | S5: =IF(R5=R6,"",IF(T3=0,"",IF(R$3>0.99999999999,"و",""))) ->  | T5: =IF(T3=1,T6,IF(T3=U7,T7,IF(T3=U8,T8,IF(T3=U9,T9,IF(T3=U10,T10,T11))))) ->  | V5: =IF(Y3>0," فقط : ","") -> 
A6: =IF(F4>1.09,A14,IF(F4<0.29,A14,A15)) -> لاغير | B6: =IF(D3>0.9,B17,B16) -> عشرة | C6: 1 | D6: =IF(B5=B6,D16,D18) -> واحد | E6: 1 | F6: =IF(H3>0.9,F17,F16) -> عشرة | G6: 1 | H6: =IF(F5=F6,H16,H18) -> واحد | I6: 1 | J6: مائة | K6: 1 | L6: =IF(N3>0.9,L17,L16) -> عشرة آلاف | M6: 1 | N6: =IF(L3>0.9999999,N16,N29) -> الف | O6: 1 | P6: =IF(L3>0.9999999,P16,P29) -> مائة الف | Q6: 1 | R6: =IF(T3>0.9,R17,R16) -> عشرة ملايين | S6: 1 | T6: =IF(R3>0.9999999,T16,T29) -> مليون | U6: 1 | Y6: =IF(Y3>0.0001,(V5&U5&T5&S5&R5&Q5&P5&O5&N5&M5&L5&K5&J5&I5&H5&G5&F5&E5&D5&C5&B5&A5),"أيمن عصفور") -> أيمن عصفور
A7: قرشاً لاغير | B7: عشرون | C7: 2 | D7: =IF(B5=B6,D17,D19) -> إثنين | E7: 2 | F7: عشرون | G7: 2 | H7: =IF(F5=F6,H17,H19) -> إثنين | I7: 2 | J7: مائتين | K7: 2 | L7: =IF(L$28=0,L20,K20) -> عشرون ألف | M7: 2 | N7: =IF(L3>0.9999999,N17,N30) -> ألفان | O7: 2 | P7: =IF(L3>0.9999999,P17,P30) -> مائتي الف | Q7: 2 | R7: عشرين مليون | S7: 2 | T7: =IF(R3>0.9999999,T17,T30) -> مليونان | U7: 2
A8: لاغير | B8: ثلاثون | C8: 3 | D8: ثلاثة | E8: 3 | F8: ثلاثون | G8: 3 | H8: ثلاثة | I8: 3 | J8: ثلاثمائة | K8: 3 | L8: =IF(L$28=0,L21,K21) -> ثلاثون ألف | M8: 3 | N8: =IF(L3>0.9999999,N18,N31) -> ثلاثة آلاف | O8: 3 | P8: =IF(L3>0.9999999,P18,P31) -> ثلاثمائة الف | Q8: 3 | R8: ثلاثون مليون | S8: 3 | T8: =IF(R3>0.9999999,T18,T31) -> ثلاثة ملايين | U8: 3
A9: قروش لاغير | B9: أربعون | C9: 4 | D9: أربعة | E9: 4 | F9: أربعون | G9: 4 | H9: أربعة | I9: 4 | J9: أربعمائة | K9: 4 | L9: =IF(L$28=0,L22,K22) -> أربعون ألف | M9: 4 | N9: =IF(L3>0.9999999,N19,N32) -> أربعة آلاف | O9: 4 | P9: =IF(L3>0.9999999,P19,P32) -> أربعمائة الف | Q9: 4 | R9: أربعون مليون | S9: 4 | T9: =IF(R3>0.9999999,T19,T32) -> أربعة ملايين | U9: 4
B10: خمسون | C10: 5 | D10: خمسة | E10: 5 | F10: خمسون | G10: 5 | H10: خمسة | I10: 5 | J10: خمسمائة | K10: 5 | L10: =IF(L$28=0,L23,K23) -> خمسون ألف | M10: 5 | N10: =IF(L3>0.9999999,N20,N33) -> خمسة آلاف | O10: 5 | P10: =IF(L3>0.9999999,P20,P33) -> خمسمائة الف | Q10: 5 | R10: خمسون مليون | S10: 5 | T10: =IF(R3>0.9999999,T20,T33) -> خمسة ملايين | U10: 5
A11: =IF(F4>1.09,A13,IF(F4<0.3,A13,A12)) -> و | B11: =IF(B3=C12,B12,IF(B3=C13,B13,IF(B3=C14,B14,IF(B3=C15,B15,"")))) ->  | D11: =IF(D3=E12,D12,IF(D3=E13,D13,IF(D3=E14,D14,IF(D3=E15,D15,"")))) ->  | E11: =IF(B4>0.099,A11,"") ->  | F11: =IF(F3=G12,F12,IF(F3=G13,F13,IF(F3=G14,F14,IF(F3=G15,F15,"")))) ->  | G11: =IF((H3+J3+L3+N3+P3+R3+T3)<1,"",IF(H3>0.9,"","و")) ->  | H11: =IF(H3=I12,H12,IF(H3=I13,H13,IF(H3=I14,H14,IF(H3=I15,H15,"")))) ->  | J11: =IF(J3=K12,J12,IF(J3=K13,J13,IF(J3=K14,J14,IF(J3=K15,J15,"")))) ->  | L11: =IF(L3=M12,L12,IF(L3=M13,L13,IF(L3=M14,L14,IF(L3=M15,L15,"")))) ->  | M11: =IF((N3+P3+R3+T3)<1,"",IF(N3>0.9,"","و")) ->  | N11: =IF(N3=O12,N12,IF(N3=O13,N13,IF(N3=O14,N14,IF(N3=O15,N15,"")))) ->  | P11: =IF(P3=Q12,P12,IF(P3=Q13,P13,IF(P3=Q14,P14,IF(P3=Q15,P15,"")))) ->  | R11: =IF(R3=S12,R12,IF(R3=S13,R13,IF(R3=S14,R14,IF(R3=S15,R15,"")))) ->  | T11: =IF(T3=U12,T12,IF(T3=U13,T13,IF(T3=U14,T14,IF(T3=U15,T15,"")))) -> 
A12: جنيهات و | B12: ستون | C12: 6 | D12: ستة | E12: 6 | F12: ستون | G12: 6 | H12: ستة | I12: 6 | J12: ستمائة | K12: 6 | L12: =IF(L$28=0,L24,K24) -> ستون ألف | M12: 6 | N12: =IF(L3>0.9999999,N21,N34) -> ستة آلاف | O12: 6 | P12: =IF(L3>0.9999999,P21,P34) -> ستمائة الف | Q12: 6 | R12: ستون مليون | S12: 6 | T12: =IF(R3>0.9999999,T21,T34) -> ستة ملايين | U12: 6
A13: =IF(Y3<3,"و ",A17) -> و | B13: سبعون | C13: 7 | D13: سبعة | E13: 7 | F13: سبعون | G13: 7 | H13: سبعة | I13: 7 | J13: سبعمائة | K13: 7 | L13: =IF(L$28=0,L25,K25) -> سبعون ألف | M13: 7 | N13: =IF(L3>0.9999999,N22,N35) -> سبعة آلاف | O13: 7 | P13: =IF(L3>0.9999999,P22,P35) -> سبعمائة الف | Q13: 7 | R13: سبعون مليون | S13: 7 | T13: =IF(R3>0.9999999,T22,T35) -> سبعة ملايين | U13: 7
A14: =IF(Y3<3,A8,A16) -> لاغير | B14: ثمانون | C14: 8 | D14: ثمانية | E14: 8 | F14: ثمانون | G14: 8 | H14: ثمانية | I14: 8 | J14: ثمانمائة | K14: 8 | L14: =IF(L$28=0,L26,K26) -> ثمانون ألف | M14: 8 | N14: =IF(L3>0.9999999,N23,N36) -> ثمانية آلاف | O14: 8 | P14: =IF(L3>0.9999999,P23,P36) -> ثمانمائة الف | Q14: 8 | R14: ثمانون مليون | S14: 8 | T14: =IF(R3>0.9999999,T23,T36) -> ثمانية ملايين | U14: 8
A15: جنيهات لاغير | B15: تسعون | C15: 9 | D15: تسعة | E15: 9 | F15: تسعون | G15: 9 | H15: تسعة | I15: 9 | J15: تسعمائة | K15: 9 | L15: =IF(L$28=0,L27,K27) -> تسعون ألف | M15: 9 | N15: =IF(L3>0.9999999,N24,N37) -> تسعة آلاف | O15: 9 | P15: =IF(L3>0.9999999,P24,P37) -> تسعمائة الف | Q15: 9 | R15: تسعون مليون | S15: 9 | T15: =IF(R3>0.9999999,T24,T37) -> تسعة ملايين | U15: 9
A16: =IF(A20>0.00001,A18,A19) -> جنيه لاغير | B16: عشرة | D16: احدى | F16: عشرة | H16: احدى | L16: عشرة آلاف | N16: =IF(L5=L6,N25,N27) -> واحد | P16: مائة | R16: عشرة ملايين | T16: =IF(R5=R6,T25,T27) -> واحد
A17: =IF(A20>0.00001,A21,A22) -> جنيه و | B17: عشر | D17: إثنا | F17: عشر | H17: إثنا | L17: =IF(L28=0,K18,L18) -> عشر ألف | N17: =IF(L5=L6,N26,N28) -> إثنين | P17: مائتين | R17: عشر مليون | T17: =IF(R5=R6,T26,T28) -> إثنين
A18: =IF(L28=0,A19,B18) -> جنيه لاغير | B18: جنيهاً لاغير | D18: =IF(D3+B3=1,D22,D20) -> واحد | H18: =IF(Y3=1,"جنيهاً واحداً ",IF(Y3>1,IF(Y3<2,"جنيهاً واحداً ",H20),H20)) -> واحد | K18: عشر ألف | L18: عشر ألفاً | N18: ثلاثة | P18: ثلاثمائة | T18: ثلاثة
A19: جنيه لاغير | B19: =(B3&D3) -> 00 | D19: =IF(D3+B3=2,D23,D21) -> إثنين | H19: =IF(Y3=2,"جنيهان ",IF(Y3>2,IF(Y3<3,"جنيهان ",H21),H21)) -> إثنين | L19: عشر ألف | N19: أربعة | P19: أربعمائة | T19: أربعة
A20: =L3+J3+H3+F3 -> 0 | B20: =B19/1 -> 0 | D20: واحد | H20: واحد | K20: عشرون ألفاً | L20: عشرون ألف | N20: خمسة | P20: خمسمائة | T20: خمسة
A21: جنيهاً و | D21: إثنين | H21: إثنين | K21: ثلاثون ألفاً | L21: ثلاثون ألف | N21: ستة | P21: ستمائة | T21: ستة
A22: جنيه و | D22: قرش واحد | K22: أربعون ألفاً | L22: أربعون ألف | N22: سبعة | P22: سبعمائة | T22: سبعة
D23: قرشان | K23: خمسون ألفاً | L23: خمسون ألف | N23: ثمانية | P23: ثمانمائة | T23: ثمانية
K24: ستون ألفاً | L24: ستون ألف | N24: تسعة | P24: تسعمائة | T24: تسعة
K25: سبعون ألفاً | L25: سبعون ألف | N25: احد | T25: احد
K26: ثمانون ألفاً | L26: ثمانون ألف | N26: إثنا | T26: إثنا
K27: تسعون ألفاً | L27: تسعون ألف | N27: واحد | T27: واحد
L28: =SUM(F3:J3) -> 0 | N28: إثنين | T28: إثنين
N29: الف | P29: مائة الف | T29: مليون
N30: ألفان | P30: مائتي الف | T30: مليونان
N31: ثلاثة آلاف | P31: ثلاثمائة الف | T31: ثلاثة ملايين
N32: أربعة آلاف | P32: أربعمائة الف | T32: أربعة ملايين
N33: خمسة آلاف | P33: خمسمائة الف | T33: خمسة ملايين
N34: ستة آلاف | P34: ستمائة الف | T34: ستة ملايين
N35: سبعة آلاف | P35: سبعمائة الف | T35: سبعة ملايين
N36: ثمانية آلاف | P36: ثمانمائة الف | T36: ثمانية ملايين
N37: تسعة آلاف | P37: تسعمائة الف | T37: تسعة ملايين

Sheet AAA
F2: =PRIC!E8 -> قطاع 1 | O2: =PRIC!N8 -> قطاع 2 | V2: =PRIC!U8 -> قطاع 3 | AC2: =PRIC!AB8 -> قطاع 4
A3: م | B3: الوصف | C3: عرض | D3: عمق | E3: ارتفاع | F3: =PRIC!E9 -> عرض | G3: =PRIC!F9 -> عدد | H3: =PRIC!G9 -> عمق | I3: =PRIC!H9 -> عدد | J3: =PRIC!I9 -> ارتفاع | K3: =PRIC!J9 -> عدد | L3: =PRIC!K9 -> م-طولي | M3: =PRIC!L9 -> وزن | N3: =PRIC!M9 -> $ | O3: =PRIC!N9 -> عرض | P3: =PRIC!O9 -> عدد | Q3: =PRIC!P9 -> ارتفاع | R3: =PRIC!Q9 -> عدد | S3: =PRIC!R9 -> م-طولي | T3: =PRIC!S9 -> وزن | U3: =PRIC!T9 -> $ | V3: =PRIC!U9 -> عرض | W3: =PRIC!V9 -> عدد | X3: =PRIC!W9 -> عمق | Y3: =PRIC!X9 -> عدد | Z3: =PRIC!Y9 -> م-طولي | AA3: =PRIC!Z9 -> وزن | AB3: =PRIC!AA9 -> $ | AC3: =PRIC!AB9 -> عرض | AD3: =PRIC!AC9 -> عدد | AE3: =PRIC!AD9 -> ارتفاع | AF3: =PRIC!AE9 -> عدد | AG3: =PRIC!AF9 -> م-طولي | AH3: =PRIC!AG9 -> وزن | AI3: =PRIC!AH9 -> $
A4: B18 | B4: C18 | C4: E | D4: F | E4: G

Sheet CCC
F2: =PRIC!AI8 -> خلفي | I2: =PRIC!AL8 -> جانبي | L2: =PRIC!AO8 -> سفلي + علوي | O2: =PRIC!AR8 -> ضلفة | R2: =PRIC!AU8 -> رف | U2: =PRIC!AX8 -> مساحة
A3: م | B3: الوصف | C3: عرض | D3: عمق | E3: ارتفاع | F3: =PRIC!AI9 -> عرض | G3: =PRIC!AJ9 -> ارتفاع | H3: =PRIC!AK9 -> عدد | I3: =PRIC!AL9 -> عرض | J3: =PRIC!AM9 -> ارتفاع | K3: =PRIC!AN9 -> عدد | L3: =PRIC!AO9 -> عرض | M3: =PRIC!AP9 -> ارتفاع | N3: =PRIC!AQ9 -> عدد | O3: =PRIC!AR9 -> عرض | P3: =PRIC!AS9 -> ارتفاع | Q3: =PRIC!AT9 -> عدد | R3: =PRIC!AU9 -> عرض | S3: =PRIC!AV9 -> ارتفاع | T3: =PRIC!AW9 -> عدد | U3: =PRIC!AX9 -> م-مربع | V3: =PRIC!AY9 -> $
A4: B18 | B4: C18 | C4: E | D4: F | E4: G

Sheet SSS
F2: =PRIC!AZ8 -> 1 | I2: =PRIC!BC8 -> 2 | L2: =PRIC!BF8 -> 3 | O2: =PRIC!BI8 -> 4 | R2: =PRIC!BL8 -> 5 | U2: =PRIC!BO8 -> 6 | X2: =PRIC!BR8 -> 7 | AA2: =PRIC!BU8 -> 8 | AD2: =PRIC!BX8 -> 9 | AG2: =PRIC!CA8 -> 10
A3: م | B3: الوصف | C3: عرض | D3: عمق | E3: ارتفاع | F3: =PRIC!AZ9 -> عدد | G3: =PRIC!BA9 -> سعر | H3: =PRIC!BB9 -> $ | I3: =PRIC!BC9 -> عدد | J3: =PRIC!BD9 -> سعر | K3: =PRIC!BE9 -> $ | L3: =PRIC!BF9 -> عدد | M3: =PRIC!BG9 -> سعر | N3: =PRIC!BH9 -> $ | O3: =PRIC!BI9 -> عدد | P3: =PRIC!BJ9 -> سعر | Q3: =PRIC!BK9 -> $ | R3: =PRIC!BL9 -> عدد | S3: =PRIC!BM9 -> سعر | T3: =PRIC!BN9 -> $ | U3: =PRIC!BO9 -> عدد | V3: =PRIC!BP9 -> سعر | W3: =PRIC!BQ9 -> $ | X3: =PRIC!BR9 -> عدد | Y3: =PRIC!BS9 -> سعر | Z3: =PRIC!BT9 -> $ | AA3: =PRIC!BU9 -> عدد | AB3: =PRIC!BV9 -> سعر | AC3: =PRIC!BW9 -> $ | AD3: =PRIC!BX9 -> عدد | AE3: =PRIC!BY9 -> سعر | AF3: =PRIC!BZ9 -> $ | AG3: =PRIC!CA9 -> عدد | AH3: =PRIC!CB9 -> سعر | AI3: =PRIC!CC9 -> $
A4: B18 | B4: C18 | C4: E | D4: F | E4: G | F4: الموجود في مجموعة SSS

Sheet PRIC
CE1: سعر
E7: AAA | AI7: CCC | AZ7: SSS
E8: قطاع 1 | N8: قطاع 2 | U8: قطاع 3 | AB8: قطاع 4 | AI8: خلفي | AL8: جانبي | AO8: سفلي + علوي | AR8: ضلفة | AU8: رف | AX8: مساحة | AZ8: 1 | BC8: 2 | BF8: 3 | BI8: 4 | BL8: 5 | BO8: 6 | BR8: 7 | BU8: 8 | BX8: 9 | CA8: 10 | CD8: تكلفة
A9: TYPE | B9: عرض | C9: عمق | D9: ارتفاع | E9: عرض | F9: عدد | G9: عمق | H9: عدد | I9: ارتفاع | J9: عدد | K9: م-طولي | L9: وزن | M9: $ | N9: عرض | O9: عدد | P9: ارتفاع | Q9: عدد | R9: م-طولي | S9: وزن | T9: $ | U9: عرض | V9: عدد | W9: عمق | X9: عدد | Y9: م-طولي | Z9: وزن | AA9: $ | AB9: عرض | AC9: عدد | AD9: ارتفاع | AE9: عدد | AF9: م-طولي | AG9: وزن | AH9: $ | AI9: عرض | AJ9: ارتفاع | AK9: عدد | AL9: عرض | AM9: ارتفاع | AN9: عدد | AO9: عرض | AP9: ارتفاع | AQ9: عدد | AR9: عرض | AS9: ارتفاع | AT9: عدد | AU9: عرض | AV9: ارتفاع | AW9: عدد | AX9: م-مربع | AY9: $ | AZ9: عدد | BA9: سعر | BB9: $ | BC9: عدد | BD9: سعر | BE9: $ | BF9: عدد | BG9: سعر | BH9: $ | BI9: عدد | BJ9: سعر | BK9: $ | BL9: عدد | BM9: سعر | BN9: $ | BO9: عدد | BP9: سعر | BQ9: $ | BR9: عدد | BS9: سعر | BT9: $ | BU9: عدد | BV9: سعر | BW9: $ | BX9: عدد | BY9: سعر | BZ9: $ | CA9: عدد | CB9: سعر | CC9: $ | CE9: 1.2
A10: قاعدة 1 | E10: =B10+Themes!$C$2 -> -5 | F10: 4 | G10: =C10+Themes!$C$3 -> -5 | H10: 4 | I10: =D10+Themes!$C$4 -> -15 | J10: 4 | K10: =((J10*I10)+(H10*G10)+(F10*E10))/100 -> -1 | L10: =K10*Themes!$D$2 -> -0.4 | M10: =L10*Themes!$F$2 -> -38 | N10: =B10+Themes!$C$6 -> -1 | O10: 2 | P10: =D10+Themes!$C$8 -> -11 | Q10: 2 | R10: =((Q10*P10)+(O10*N10))/100 -> -0.24 | S10: =R10*Themes!$D$6 -> -0.108 | T10: =S10*Themes!$F$2 -> -10.26 | U10: =B10+Themes!$C$10 -> -4 | V10: 2 | W10: =C10+Themes!$C$11 -> -4 | X10: 2 | Y10: =((X10*W10)+(V10*U10))/100 -> -0.16 | Z10: =Y10*Themes!$D$10 -> -0.072 | AA10: =Z10*Themes!$F$2 -> -6.84 | AB10: =B10+Themes!$C$12 -> -3 | AC10: 2 | AD10: =D10+Themes!$C$13 -> -13 | AE10: 2 | AF10: =((AE10*AD10)+(AC10*AB10))/100 -> -0.32 | AG10: =AF10*Themes!$D$12 -> -0.0384 | AH10: =AG10*Themes!$F$2 -> -3.648 | AI10: =B10+Themes!$N$1 -> -1 | AJ10: =D10+Themes!$N$2 -> -11 | AK10: 2 | AL10: =C10+Themes!$N$3 -> -1 | AM10: =D10+Themes!$N$4 -> -1 | AN10: 4 | AO10: =B10+Themes!$N$5 -> -1 | AP10: =C10+Themes!$N$6 -> -1 | AQ10: 2 | AR10: =B10+Themes!$N$7 -> -2 | AS10: =D10+Themes!$N$8 -> -12 | AT10: 2 | AU10: =B10+Themes!$N$9 -> -5 | AV10: =C10+Themes!$N$10 -> -5 | AW10: 2 | AX10: =((AW10*AV10*AU10)+(AT10*AS10*AR10)+(AQ10*AP10*AO10)+(AN10*AM10*AL10)+(AK10*AJ10*AI10))/10000 -> 0.0126 | AY10: =AX10*Themes!$F$3 -> 1.89 | AZ10: 8 | BA10: =Themes!$F$4 -> 7 | BB10: =BA10*AZ10 -> 56 | BC10: 8 | BD10: =Themes!$F$5 -> 3 | BE10: =BD10*BC10 -> 24 | BF10: 4 | BG10: =Themes!$F$6 -> 4 | BH10: =BG10*BF10 -> 16 | BI10: 1 | BJ10: =Themes!$F$7 -> 40 | BK10: =BJ10*BI10 -> 40 | BL10: 2 | BM10: =Themes!$F$8 -> 20 | BN10: =BM10*BL10 -> 40 | BO10: =B10*0.01 -> 0 | BP10: =Themes!$F$9 -> 80 | BQ10: =BP10*BO10 -> 0 | BR10: 0 | BS10: =Themes!$F$10 -> 375 | BT10: =BS10*BR10 -> 0 | BU10: 0 | BV10: =Themes!$F$11 -> 40 | BW10: =BV10*BU10 -> 0 | BX10: 0 | BY10: =Themes!$F$12 -> 60 | BZ10: =BY10*BX10 -> 0 | CA10: 0 | CB10: =Themes!$F$13 -> 70 | CC10: =CB10*CA10 -> 0 | CD10: =(BW10+BT10+BQ10+BN10+BK10+BH10+BE10+BB10+AY10+AH10+AA10+T10+M10+BZ10+CC10) -> 119.142 | CE10: =CD10*$CE$9 -> 142.9704
A11: قاعدة 2 | E11: =B11+Themes!$C$2 -> -5 | F11: 4 | G11: =C11+Themes!$C$3 -> -5 | H11: 4 | I11: =D11+Themes!$C$4 -> -15 | J11: 4 | K11: -1 | L11: =K11*Themes!$D$2 -> -0.4 | M11: =L11*Themes!$F$2 -> -38 | N11: =(B11+Themes!C7)/2 -> -0.75 | O11: 4 | P11: =D11+Themes!$C$8 -> -11 | Q11: 4 | R11: -0.47 | S11: =R11*Themes!$D$6 -> -0.2115 | T11: =S11*Themes!$F$2 -> -20.0925 | U11: =B11+Themes!$C$10 -> -4 | V11: 2 | W11: =C11+Themes!$C$11 -> -4 | X11: 2 | Y11: -0.16 | Z11: =Y11*Themes!$D$10 -> -0.072 | AA11: =Z11*Themes!$F$2 -> -6.84 | AB11: =B11+Themes!$C$12 -> -3 | AC11: 2 | AD11: =D11+Themes!$C$13 -> -13 | AE11: 2 | AF11: -0.32 | AG11: =AF11*Themes!$D$12 -> -0.0384 | AH11: =AG11*Themes!$F$2 -> -3.648 | AI11: =B11+Themes!$N$1 -> -1 | AJ11: =D11+Themes!$N$2 -> -11 | AK11: 2 | AL11: =C11+Themes!$N$3 -> -1 | AM11: =D11+Themes!$N$4 -> -1 | AN11: 4 | AO11: =B11+Themes!$N$5 -> -1 | AP11: =C11+Themes!$N$6 -> -1 | AQ11: 2 | AR11: =(B11+Themes!N11)/2 -> -1 | AS11: =D11+Themes!$N$8 -> -12 | AT11: 4 | AU11: =B11+Themes!$N$9 -> -5 | AV11: =C11+Themes!$N$10 -> -5 | AW11: 2 | AX11: 0.0126 | AY11: =AX11*Themes!$F$3 -> 1.89 | AZ11: 8 | BA11: =Themes!$F$4 -> 7 | BB11: 56 | BC11: 12 | BD11: =Themes!$F$5 -> 3 | BE11: 36 | BF11: 4 | BG11: =Themes!$F$6 -> 4 | BH11: 16 | BI11: 2 | BJ11: =Themes!$F$7 -> 40 | BK11: 80 | BL11: 4 | BM11: =Themes!$F$8 -> 20 | BN11: 80 | BO11: 0 | BP11: =Themes!$F$9 -> 80 | BQ11: 0 | BR11: 0 | BS11: =Themes!$F$10 -> 375 | BT11: 0 | BU11: 0 | BV11: =Themes!$F$11 -> 40 | BW11: 0 | BX11: 0 | BY11: =Themes!$F$12 -> 60 | BZ11: 0 | CA11: 0 | CB11: =Themes!$F$13 -> 70 | CC11: 0 | CD11: =(BW11+BT11+BQ11+BN11+BK11+BH11+BE11+BB11+AY11+AH11+AA11+T11+M11+BZ11+CC11) -> 201.3095 | CE11: 241.5714
A12: قاعدة 3 | E12: =B12+Themes!$C$2 -> -5 | F12: 4 | G12: =C12+Themes!$C$3 -> -5 | H12: 4 | I12: =D12+Themes!$C$4 -> -15 | J12: 4 | K12: -1 | L12: =K12*Themes!$D$2 -> -0.4 | M12: =L12*Themes!$F$2 -> -38 | N12: =(B12+Themes!C8)/2 -> -5.5 | O12: 4 | P12: =D12+Themes!$C$8 -> -11 | Q12: 4 | R12: -0.66 | S12: =R12*Themes!$D$6 -> -0.297 | T12: =S12*Themes!$F$2 -> -28.215 | U12: =B12+Themes!$C$10 -> -4 | V12: 0 | W12: =C12+Themes!$C$11 -> -4 | X12: 0 | Y12: 0 | Z12: =Y12*Themes!$D$10 -> 0 | AA12: =Z12*Themes!$F$2 -> 0 | AB12: =B12+Themes!$C$12 -> -3 | AC12: 2 | AD12: =D12+Themes!$C$13 -> -13 | AE12: 2 | AF12: -0.32 | AG12: =AF12*Themes!$D$12 -> -0.0384 | AH12: =AG12*Themes!$F$2 -> -3.648 | AI12: =B12+Themes!$N$1 -> -1 | AJ12: =D12+Themes!$N$2 -> -11 | AK12: 2 | AL12: =C12+Themes!$N$3 -> -1 | AM12: =D12+Themes!$N$4 -> -1 | AN12: 4 | AO12: =B12+Themes!$N$5 -> -1 | AP12: =C12+Themes!$N$6 -> -1 | AQ12: 2 | AR12: =(B12+Themes!C27)/2 -> 0 | AS12: =D12+Themes!$N$8 -> -12 | AT12: 4 | AU12: =B12+Themes!$N$9 -> -5 | AV12: =C12+Themes!$N$10 -> -5 | AW12: 0 | AX12: 0.0028 | AY12: =AX12*Themes!$F$3 -> 0.42 | AZ12: 8 | BA12: =Themes!$F$4 -> 7 | BB12: 56 | BC12: 8 | BD12: =Themes!$F$5 -> 3 | BE12: 24 | BF12: 4 | BG12: =Themes!$F$6 -> 4 | BH12: 16 | BI12: 2 | BJ12: =Themes!$F$7 -> 40 | BK12: 80 | BL12: 4 | BM12: =Themes!$F$8 -> 20 | BN12: 80 | BO12: 0 | BP12: =Themes!$F$9 -> 80 | BQ12: 0 | BR12: 0 | BS12: =Themes!$F$10 -> 375 | BT12: 0 | BU12: 0 | BV12: =Themes!$F$11 -> 40 | BW12: 0 | BX12: 0 | BY12: =Themes!$F$12 -> 60 | BZ12: 0 | CA12: 0 | CB12: =Themes!$F$13 -> 70 | CC12: 0 | CD12: 186.557 | CE12: 223.8684
A13: قاعدة 4 | E13: =B13+Themes!$C$2 -> -5 | F13: 4 | G13: =C13+Themes!$C$3 -> -5 | H13: 4 | I13: =D13+Themes!$C$4 -> -15 | J13: 4 | K13: -1 | L13: =K13*Themes!$D$2 -> -0.4 | M13: =L13*Themes!$F$2 -> -38 | N13: =(B13+Themes!C9)-65 -> -66 | O13: 2 | P13: =D13+Themes!$C$8 -> -11 | Q13: 2 | R13: -1.54 | S13: =R13*Themes!$D$6 -> -0.693 | T13: =S13*Themes!$F$2 -> -65.835 | U13: =B13+Themes!$C$10 -> -4 | V13: 2 | W13: =C13+Themes!$C$11 -> -4 | X13: 2 | Y13: -0.16 | Z13: =Y13*Themes!$D$10 -> -0.072 | AA13: =Z13*Themes!$F$2 -> -6.84 | AB13: =B13+Themes!$C$12 -> -3 | AC13: 2 | AD13: =D13+Themes!$C$13 -> -13 | AE13: 2 | AF13: -0.32 | AG13: =AF13*Themes!$D$12 -> -0.0384 | AH13: =AG13*Themes!$F$2 -> -3.648 | AI13: =B13+Themes!$N$1 -> -1 | AJ13: =D13+Themes!$N$2 -> -11 | AK13: 2 | AL13: =C13+Themes!$N$3 -> -1 | AM13: =D13+Themes!$N$4 -> -1 | AN13: 4 | AO13: =B13+Themes!$N$5 -> -1 | AP13: =C13+Themes!$N$6 -> -1 | AQ13: 2 | AR13: =(B13+Themes!C28) -> 0 | AS13: =D13+Themes!$N$8 -> -12 | AT13: 2 | AU13: =B13+Themes!$N$9 -> -5 | AV13: =C13+Themes!$N$10 -> -5 | AW13: 2 | AX13: 0.0078 | AY13: =AX13*Themes!$F$3 -> 1.17 | AZ13: 8 | BA13: =Themes!$F$4 -> 7 | BB13: 56 | BC13: 8 | BD13: =Themes!$F$5 -> 3 | BE13: 24 | BF13: 4 | BG13: =Themes!$F$6 -> 4 | BH13: 16 | BI13: 1 | BJ13: =Themes!$F$7 -> 40 | BK13: 40 | BL13: 2 | BM13: =Themes!$F$8 -> 20 | BN13: 40 | BO13: 0 | BP13: =Themes!$F$9 -> 80 | BQ13: 0 | BR13: 0 | BS13: =Themes!$F$10 -> 375 | BT13: 0 | BU13: 0 | BV13: =Themes!$F$11 -> 40 | BW13: 0 | BX13: 0 | BY13: =Themes!$F$12 -> 60 | BZ13: 0 | CA13: 0 | CB13: =Themes!$F$13 -> 70 | CC13: 0 | CD13: 62.847 | CE13: 75.4164
A14: قاعدة 5 | E14: =B14+Themes!$C$2 -> -5 | F14: 4 | G14: =C14+Themes!$C$3 -> -5 | H14: 4 | I14: =D14+Themes!$C$4 -> -15 | J14: 4 | K14: -1 | L14: =K14*Themes!$D$2 -> -0.4 | M14: =L14*Themes!$F$2 -> -38 | N14: =(B14+Themes!C10)-65 -> -69 | O14: 2 | P14: =D14+Themes!$C$8 -> -11 | Q14: 2 | R14: -1.6 | S14: =R14*Themes!$D$6 -> -0.72 | T14: =S14*Themes!$F$2 -> -68.4 | U14: =B14+Themes!$C$10 -> -4 | V14: 0 | W14: =C14+Themes!$C$11 -> -4 | X14: 0 | Y14: 0 | Z14: =Y14*Themes!$D$10 -> 0 | AA14: =Z14*Themes!$F$2 -> 0 | AB14: =B14+Themes!$C$12 -> -3 | AC14: 2 | AD14: =D14+Themes!$C$13 -> -13 | AE14: 2 | AF14: -0.32 | AG14: =AF14*Themes!$D$12 -> -0.0384 | AH14: =AG14*Themes!$F$2 -> -3.648 | AI14: =B14+Themes!$N$1 -> -1 | AJ14: =D14+Themes!$N$2 -> -11 | AK14: 2 | AL14: =C14+Themes!$N$3 -> -1 | AM14: =D14+Themes!$N$4 -> -1 | AN14: 4 | AO14: =B14+Themes!$N$5 -> -1 | AP14: =C14+Themes!$N$6 -> -1 | AQ14: 2 | AR14: =(B14+Themes!C29) -> 0 | AS14: =D14+Themes!$N$8 -> -12 | AT14: 2 | AU14: =B14+Themes!$N$9 -> -5 | AV14: =C14+Themes!$N$10 -> -5 | AW14: 0 | AX14: 0.0028 | AY14: =AX14*Themes!$F$3 -> 0.42 | AZ14: 8 | BA14: =Themes!$F$4 -> 7 | BB14: 56 | BC14: 4 | BD14: =Themes!$F$5 -> 3 | BE14: 12 | BF14: 4 | BG14: =Themes!$F$6 -> 4 | BH14: 16 | BI14: 1 | BJ14: =Themes!$F$7 -> 40 | BK14: 40 | BL14: 2 | BM14: =Themes!$F$8 -> 20 | BN14: 40 | BO14: 0 | BP14: =Themes!$F$9 -> 80 | BQ14: 0 | BR14: 0 | BS14: =Themes!$F$10 -> 375 | BT14: 0 | BU14: 0 | BV14: =Themes!$F$11 -> 40 | BW14: 0 | BX14: 0 | BY14: =Themes!$F$12 -> 60 | BZ14: 0 | CA14: 0 | CB14: =Themes!$F$13 -> 70 | CC14: 0 | CD14: 54.372 | CE14: 65.2464
A15: قاعدة 6 | E15: =B15+Themes!$C$2 -> -5 | F15: 4 | G15: 65 | H15: 4 | I15: =D15+Themes!$C$4 -> -15 | J15: 5 | K15: 1.65 | L15: =K15*Themes!$D$2 -> 0.66 | M15: =L15*Themes!$F$2 -> 62.7 | N15: 45 | O15: 2 | P15: =D15+Themes!$C$8 -> -11 | Q15: 2 | R15: 0.68 | S15: =R15*Themes!$D$6 -> 0.306 | T15: =S15*Themes!$F$2 -> 29.07 | U15: =B15+Themes!$C$10 -> -4 | V15: 2 | W15: =C15+Themes!$C$11 -> -4 | X15: 2 | Y15: -0.16 | Z15: =Y15*Themes!$D$10 -> -0.072 | AA15: =Z15*Themes!$F$2 -> -6.84 | AB15: 45 | AC15: 2 | AD15: =D15+Themes!$C$13 -> -13 | AE15: 2 | AF15: 0.64 | AG15: =AF15*Themes!$D$12 -> 0.0768 | AH15: =AG15*Themes!$F$2 -> 7.296 | AI15: =B15+Themes!$N$1 -> -1 | AJ15: =D15+Themes!$N$2 -> -11 | AK15: 2 | AL15: =C15+Themes!$N$3 -> -1 | AM15: =D15+Themes!$N$4 -> -1 | AN15: 4 | AO15: =B15+Themes!$N$5 -> -1 | AP15: =C15+Themes!$N$6 -> -1 | AQ15: 2 | AR15: 45 | AS15: =D15+Themes!$N$8 -> -12 | AT15: 2 | AU15: =B15+Themes!$N$9 -> -5 | AV15: =C15+Themes!$N$10 -> -5 | AW15: 2 | AX15: -0.1002 | AY15: =AX15*Themes!$F$3 -> -15.03 | AZ15: 8 | BA15: =Themes!$F$4 -> 7 | BB15: 56 | BC15: 8 | BD15: =Themes!$F$5 -> 3 | BE15: 24 | BF15: 4 | BG15: =Themes!$F$6 -> 4 | BH15: 16 | BI15: 1 | BJ15: =Themes!$F$7 -> 40 | BK15: 40 | BL15: 2 | BM15: =Themes!$F$8 -> 20 | BN15: 40 | BO15: 0 | BP15: =Themes!$F$9 -> 80 | BQ15: 0 | BR15: 0 | BS15: =Themes!$F$10 -> 375 | BT15: 0 | BU15: 0 | BV15: =Themes!$F$11 -> 40 | BW15: 0 | BX15: 0 | BY15: =Themes!$F$12 -> 60 | BZ15: 0 | CA15: 0 | CB15: =Themes!$F$13 -> 70 | CC15: 0 | CD15: 253.196 | CE15: 303.8352
A16: قاعدة 7 | E16: =B16+Themes!$C$2 -> -5 | F16: 4 | G16: 65 | H16: 4 | I16: =D16+Themes!$C$4 -> -15 | J16: 5 | K16: 1.65 | L16: =K16*Themes!$D$2 -> 0.66 | M16: =L16*Themes!$F$2 -> 62.7 | N16: 45 | O16: 2 | P16: =D16+Themes!$C$8 -> -11 | Q16: 2 | R16: 0.68 | S16: =R16*Themes!$D$6 -> 0.306 | T16: =S16*Themes!$F$2 -> 29.07 | U16: =B16+Themes!$C$10 -> -4 | V16: 0 | W16: =C16+Themes!$C$11 -> -4 | X16: 0 | Y16: 0 | Z16: =Y16*Themes!$D$10 -> 0 | AA16: =Z16*Themes!$F$2 -> 0 | AB16: 45 | AC16: 2 | AD16: =D16+Themes!$C$13 -> -13 | AE16: 2 | AF16: 0.64 | AG16: =AF16*Themes!$D$12 -> 0.0768 | AH16: =AG16*Themes!$F$2 -> 7.296 | AI16: =B16+Themes!$N$1 -> -1 | AJ16: =D16+Themes!$N$2 -> -11 | AK16: 2 | AL16: =C16+Themes!$N$3 -> -1 | AM16: =D16+Themes!$N$4 -> -1 | AN16: 4 | AO16: =B16+Themes!$N$5 -> -1 | AP16: =C16+Themes!$N$6 -> -1 | AQ16: 2 | AR16: 45 | AS16: =D16+Themes!$N$8 -> -12 | AT16: 2 | AU16: =B16+Themes!$N$9 -> -5 | AV16: =C16+Themes!$N$10 -> -5 | AW16: 0 | AX16: -0.1052 | AY16: =AX16*Themes!$F$3 -> -15.78 | AZ16: 8 | BA16: =Themes!$F$4 -> 7 | BB16: 56 | BC16: 4 | BD16: =Themes!$F$5 -> 3 | BE16: 12 | BF16: 4 | BG16: =Themes!$F$6 -> 4 | BH16: 16 | BI16: 1 | BJ16: =Themes!$F$7 -> 40 | BK16: 40 | BL16: 2 | BM16: =Themes!$F$8 -> 20 | BN16: 40 | BO16: 0 | BP16: =Themes!$F$9 -> 80 | BQ16: 0 | BR16: 0 | BS16: =Themes!$F$10 -> 375 | BT16: 0 | BU16: 0 | BV16: =Themes!$F$11 -> 40 | BW16: 0 | BX16: 0 | BY16: =Themes!$F$12 -> 60 | BZ16: 0 | CA16: 0 | CB16: =Themes!$F$13 -> 70 | CC16: 0 | CD16: 247.286 | CE16: 296.7432
A17: قاعدة 8 | E17: =B17+Themes!$C$2 -> -5 | F17: 4 | G17: 65 | H17: 4 | I17: =D17+Themes!$C$4 -> -15 | J17: 5 | K17: =((J17*I17)+(H17*G17)+(F17*E17))/100 -> 1.65 | L17: =K17*Themes!$D$2 -> 0.66 | M17: =L17*Themes!$F$2 -> 62.7 | N17: =B17+Themes!$C$6 -> -1 | O17: 6 | P17: =(D17+Themes!$C$8)/3 -> -3.666666667 | Q17: 6 | R17: =((Q17*P17)+(O17*N17))/100 -> -0.28 | S17: =R17*Themes!$D$6 -> -0.126 | T17: =S17*Themes!$F$2 -> -11.97 | U17: =B17+Themes!$C$10 -> -4 | V17: 0 | W17: =C17+Themes!$C$11 -> -4 | X17: 0 | Y17: =((X17*W17)+(V17*U17))/100 -> 0 | Z17: =Y17*Themes!$D$10 -> 0 | AA17: =Z17*Themes!$F$2 -> 0 | AB17: =B17+Themes!$C$12 -> -3 | AC17: 2 | AD17: =D17+Themes!$C$13 -> -13 | AE17: 2 | AF17: =((AE17*AD17)+(AC17*AB17))/100 -> -0.32 | AG17: =AF17*Themes!$D$12 -> -0.0384 | AH17: =AG17*Themes!$F$2 -> -3.648 | AI17: =B17+Themes!$N$1 -> -1 | AJ17: =D17+Themes!$N$2 -> -11 | AK17: 2 | AL17: =C17+Themes!$N$3 -> -1 | AM17: =D17+Themes!$N$4 -> -1 | AN17: 4 | AO17: =B17+Themes!$N$5 -> -1 | AP17: =C17+Themes!$N$6 -> -1 | AQ17: 2 | AR17: =B17+Themes!$N$7 -> -2 | AS17: =(D17+Themes!$N$8)/3 -> -4 | AT17: 6 | AU17: =B17+Themes!$N$9 -> -5 | AV17: =C17+Themes!$N$10 -> -5 | AW17: 3 | AX17: =((AW17*AV17*AU17)+(AT17*AS17*AR17)+(AQ17*AP17*AO17)+(AN17*AM17*AL17)+(AK17*AJ17*AI17))/10000 -> 0.0151 | AY17: =AX17*Themes!$F$3 -> 2.265 | AZ17: 8 | BA17: =Themes!$F$4 -> 7 | BB17: =BA17*AZ17 -> 56 | BC17: 12 | BD17: =Themes!$F$5 -> 3 | BE17: =BD17*BC17 -> 36 | BF17: 4 | BG17: =Themes!$F$6 -> 4 | BH17: =BG17*BF17 -> 16 | BI17: 3 | BJ17: =Themes!$F$7 -> 40 | BK17: =BJ17*BI17 -> 120 | BL17: 0 | BM17: =Themes!$F$8 -> 20 | BN17: =BM17*BL17 -> 0 | BO17: =B17*0.01 -> 0 | BP17: =Themes!$F$9 -> 80 | BQ17: =BP17*BO17 -> 0 | BR17: 3 | BS17: =Themes!$F$10 -> 375 | BT17: =BS17*BR17 -> 1125 | BU17: 0 | BV17: =Themes!$F$11 -> 40 | BW17: =BV17*BU17 -> 0 | BX17: 0 | BY17: =Themes!$F$12 -> 60 | BZ17: 0 | CA17: 0 | CB17: =Themes!$F$13 -> 70 | CC17: 0 | CD17: 1402.347 | CE17: 1682.8164
A18: قاعدة 9 | E18: =B18+Themes!$C$2 -> -5 | F18: 4 | G18: 65 | H18: 4 | I18: =D18+Themes!$C$4 -> -15 | J18: 5 | K18: =((J18*I18)+(H18*G18)+(F18*E18))/100 -> 1.65 | L18: =K18*Themes!$D$2 -> 0.66 | M18: =L18*Themes!$F$2 -> 62.7 | N18: =B18+Themes!$C$6 -> -1 | O18: 4 | P18: =(D18+Themes!$C$8)/2 -> -5.5 | Q18: 4 | R18: =((Q18*P18)+(O18*N18))/100 -> -0.26 | S18: =R18*Themes!$D$6 -> -0.117 | T18: =S18*Themes!$F$2 -> -11.115 | U18: =B18+Themes!$C$10 -> -4 | V18: 0 | W18: =C18+Themes!$C$11 -> -4 | X18: 0 | Y18: =((X18*W18)+(V18*U18))/100 -> 0 | Z18: =Y18*Themes!$D$10 -> 0 | AA18: =Z18*Themes!$F$2 -> 0 | AB18: =B18+Themes!$C$12 -> -3 | AC18: 2 | AD18: =D18+Themes!$C$13 -> -13 | AE18: 2 | AF18: =((AE18*AD18)+(AC18*AB18))/100 -> -0.32 | AG18: =AF18*Themes!$D$12 -> -0.0384 | AH18: =AG18*Themes!$F$2 -> -3.648 | AI18: =B18+Themes!$N$1 -> -1 | AJ18: =D18+Themes!$N$2 -> -11 | AK18: 2 | AL18: =C18+Themes!$N$3 -> -1 | AM18: =D18+Themes!$N$4 -> -1 | AN18: 4 | AO18: =B18+Themes!$N$5 -> -1 | AP18: =C18+Themes!$N$6 -> -1 | AQ18: 2 | AR18: =B18+Themes!$N$7 -> -2 | AS18: =(D18+Themes!$N$8)/2 -> -6 | AT18: 4 | AU18: =B18+Themes!$N$9 -> -5 | AV18: =C18+Themes!$N$10 -> -5 | AW18: 3 | AX18: =((AW18*AV18*AU18)+(AT18*AS18*AR18)+(AQ18*AP18*AO18)+(AN18*AM18*AL18)+(AK18*AJ18*AI18))/10000 -> 0.0151 | AY18: =AX18*Themes!$F$3 -> 2.265 | AZ18: 8 | BA18: =Themes!$F$4 -> 7 | BB18: =BA18*AZ18 -> 56 | BC18: 8 | BD18: =Themes!$F$5 -> 3 | BE18: =BD18*BC18 -> 24 | BF18: 4 | BG18: =Themes!$F$6 -> 4 | BH18: =BG18*BF18 -> 16 | BI18: 2 | BJ18: =Themes!$F$7 -> 40 | BK18: =BJ18*BI18 -> 80 | BL18: 0 | BM18: =Themes!$F$8 -> 20 | BN18: =BM18*BL18 -> 0 | BO18: =B18*0.01 -> 0 | BP18: =Themes!$F$9 -> 80 | BQ18: =BP18*BO18 -> 0 | BR18: 2 | BS18: =Themes!$F$10 -> 375 | BT18: =BS18*BR18 -> 750 | BU18: 0 | BV18: =Themes!$F$11 -> 40 | BW18: =BV18*BU18 -> 0 | BX18: 0 | BY18: =Themes!$F$12 -> 60 | BZ18: 0 | CA18: 0 | CB18: =Themes!$F$13 -> 70 | CC18: 0 | CD18: 976.202 | CE18: 1171.4424
A19: قاعدة 10 | E19: =B19+Themes!$C$2 -> -5 | F19: 4 | G19: 65 | H19: 4 | I19: =D19+Themes!$C$4 -> -15 | J19: 5 | K19: =((J19*I19)+(H19*G19)+(F19*E19))/100 -> 1.65 | L19: =K19*Themes!$D$2 -> 0.66 | M19: =L19*Themes!$F$2 -> 62.7 | N19: =B19+Themes!$C$6 -> -1 | O19: 6 | P19: =C19+Themes!C8 -> -11 | Q19: 6 | R19: =((Q19*P19)+(O19*N19))/100 -> -0.72 | S19: =R19*Themes!$D$6 -> -0.324 | T19: =S19*Themes!$F$2 -> -30.78 | U19: =B19+Themes!$C$10 -> -4 | V19: 0 | W19: =C19+Themes!$C$11 -> -4 | X19: 0 | Y19: =((X19*W19)+(V19*U19))/100 -> 0 | Z19: =Y19*Themes!$D$10 -> 0 | AA19: =Z19*Themes!$F$2 -> 0 | AB19: =B19+Themes!$C$12 -> -3 | AC19: 2 | AD19: =D19+Themes!$C$13 -> -13 | AE19: 2 | AF19: =((AE19*AD19)+(AC19*AB19))/100 -> -0.32 | AG19: =AF19*Themes!$D$12 -> -0.0384 | AH19: =AG19*Themes!$F$2 -> -3.648 | AI19: =B19+Themes!$N$1 -> -1 | AJ19: =D19+Themes!$N$2 -> -11 | AK19: 2 | AL19: =C19+Themes!$N$3 -> -1 | AM19: =D19+Themes!$N$4 -> -1 | AN19: 4 | AO19: =B19+Themes!$N$5 -> -1 | AP19: =C19+Themes!$N$6 -> -1 | AQ19: 2 | AR19: =B19+Themes!$N$7 -> -2 | AS19: =(D19+Themes!$N$8)/2 -> -6 | AT19: 0 | AU19: =B19+Themes!$N$9 -> -5 | AV19: =C19+Themes!$N$10 -> -5 | AW19: 0 | AX19: =((AW19*AV19*AU19)+(AT19*AS19*AR19)+(AQ19*AP19*AO19)+(AN19*AM19*AL19)+(AK19*AJ19*AI19))/10000 -> 0.0028 | AY19: =AX19*Themes!$F$3 -> 0.42 | AZ19: 8 | BA19: =Themes!$F$4 -> 7 | BB19: =BA19*AZ19 -> 56 | BC19: 12 | BD19: =Themes!$F$5 -> 3 | BE19: =BD19*BC19 -> 36 | BF19: 4 | BG19: =Themes!$F$6 -> 4 | BH19: =BG19*BF19 -> 16 | BI19: 3 | BJ19: =Themes!$F$7 -> 40 | BK19: =BJ19*BI19 -> 120 | BL19: 0 | BM19: =Themes!$F$8 -> 20 | BN19: =BM19*BL19 -> 0 | BO19: =B19*0.01 -> 0 | BP19: =Themes!$F$9 -> 80 | BQ19: =BP19*BO19 -> 0 | BR19: 0 | BS19: =Themes!$F$10 -> 375 | BT19: =BS19*BR19 -> 0 | BU19: 0 | BV19: =Themes!$F$11 -> 40 | BW19: =BV19*BU19 -> 0 | BX19: 3 | BY19: =Themes!$F$12 -> 60 | BZ19: 180 | CA19: 3 | CB19: =Themes!$F$13 -> 70 | CC19: 210 | CD19: 646.692 | CE19: 776.0304
A20: قاعدة 11 | E20: =B20+Themes!$C$2 -> -5 | F20: 4 | G20: 65 | H20: 4 | I20: =D20+Themes!$C$4 -> -15 | J20: 5 | K20: =((J20*I20)+(H20*G20)+(F20*E20))/100 -> 1.65 | L20: =K20*Themes!$D$2 -> 0.66 | M20: =L20*Themes!$F$2 -> 62.7 | N20: =B20+Themes!$C$6 -> -1 | O20: 0 | P20: =D20+Themes!$C$8 -> -11 | Q20: 0 | R20: =((Q20*P20)+(O20*N20))/100 -> 0 | S20: =R20*Themes!$D$6 -> 0 | T20: =S20*Themes!$F$2 -> 0 | U20: =B20+Themes!$C$10 -> -4 | V20: 4 | W20: =C20+Themes!$C$11 -> -4 | X20: 4 | Y20: =((X20*W20)+(V20*U20))/100 -> -0.32 | Z20: =Y20*Themes!$D$10 -> -0.144 | AA20: =Z20*Themes!$F$2 -> -13.68 | AB20: =B20+Themes!$C$12 -> -3 | AC20: 2 | AD20: =D20+Themes!$C$13 -> -13 | AE20: 2 | AF20: =((AE20*AD20)+(AC20*AB20))/100 -> -0.32 | AG20: =AF20*Themes!$D$12 -> -0.0384 | AH20: =AG20*Themes!$F$2 -> -3.648 | AI20: =B20+Themes!$N$1 -> -1 | AJ20: =D20+Themes!$N$2 -> -11 | AK20: 2 | AL20: =C20+Themes!$N$3 -> -1 | AM20: =D20+Themes!$N$4 -> -1 | AN20: 4 | AO20: =B20+Themes!$N$5 -> -1 | AP20: =C20+Themes!$N$6 -> -1 | AQ20: 2 | AR20: =B20+Themes!$N$7 -> -2 | AS20: =(D20+Themes!$N$8) -> -12 | AT20: 0 | AU20: =B20+Themes!$N$9 -> -5 | AV20: =C20+Themes!$N$10 -> -5 | AW20: 4 | AX20: =((AW20*AV20*AU20)+(AT20*AS20*AR20)+(AQ20*AP20*AO20)+(AN20*AM20*AL20)+(AK20*AJ20*AI20))/10000 -> 0.0128 | AY20: =AX20*Themes!$F$3 -> 1.92 | AZ20: 8 | BA20: =Themes!$F$4 -> 7 | BB20: =BA20*AZ20 -> 56 | BC20: 8 | BD20: =Themes!$F$5 -> 3 | BE20: =BD20*BC20 -> 24 | BF20: 4 | BG20: =Themes!$F$6 -> 4 | BH20: =BG20*BF20 -> 16 | BI20: 0 | BJ20: =Themes!$F$7 -> 40 | BK20: =BJ20*BI20 -> 0 | BL20: 0 | BM20: =Themes!$F$8 -> 20 | BN20: =BM20*BL20 -> 0 | BO20: =B20*0.01 -> 0 | BP20: =Themes!$F$9 -> 80 | BQ20: =BP20*BO20 -> 0 | BR20: 0 | BS20: =Themes!$F$10 -> 375 | BT20: =BS20*BR20 -> 0 | BU20: 0 | BV20: =Themes!$F$11 -> 40 | BW20: =BV20*BU20 -> 0 | BX20: 0 | BY20: =Themes!$F$12 -> 60 | BZ20: =BY20*BX20 -> 0 | CA20: 0 | CB20: =Themes!$F$13 -> 70 | CC20: =CB20*CA20 -> 0 | CD20: =(BW20+BT20+BQ20+BN20+BK20+BH20+BE20+BB20+AY20+AH20+AA20+T20+M20+BZ20+CC20) -> 143.292 | CE20: 171.9504
A21: قاعدة 12 | E21: =B21+Themes!$C$2 -> -5 | F21: 4 | G21: =C21+Themes!$C$3 -> -5 | H21: 4 | I21: =D21+Themes!C5 -> -5 | J21: 4 | K21: -0.6 | L21: =K21*Themes!$D$2 -> -0.24 | M21: =L21*Themes!$F$2 -> -22.8 | N21: =B21+Themes!$C$6 -> -1 | O21: 2 | P21: =D21+Themes!C9 -> -1 | Q21: 2 | R21: -0.04 | S21: =R21*Themes!$D$6 -> -0.018 | T21: =S21*Themes!$F$2 -> -1.71 | U21: =B21+Themes!$C$10 -> -4 | V21: 2 | W21: =C21+Themes!$C$11 -> -4 | X21: 2 | Y21: -0.16 | Z21: =Y21*Themes!$D$10 -> -0.072 | AA21: =Z21*Themes!$F$2 -> -6.84 | AB21: =B21+Themes!$C$12 -> -3 | AC21: 2 | AD21: =D21+Themes!$C$13 -> -13 | AE21: 2 | AF21: -0.32 | AG21: =AF21*Themes!$D$12 -> -0.0384 | AH21: =AG21*Themes!$F$2 -> -3.648 | AI21: =B21+Themes!$N$1 -> -1 | AJ21: =D21+Themes!N1 -> -1 | AK21: 2 | AL21: =C21+Themes!$N$3 -> -1 | AM21: =D21+Themes!$N$4 -> -1 | AN21: 4 | AO21: =B21+Themes!$N$5 -> -1 | AP21: =C21+Themes!$N$6 -> -1 | AQ21: 4 | AR21: =B21+Themes!$N$7 -> -2 | AS21: =D21+Themes!N1 -> -1 | AT21: 2 | AU21: =B21+Themes!$N$9 -> -5 | AV21: =C21+Themes!$N$10 -> -5 | AW21: 2 | AX21: 0.0064 | AY21: =AX21*Themes!$F$3 -> 0.96 | AZ21: 8 | BA21: =Themes!$F$4 -> 7 | BB21: 56 | BC21: 8 | BD21: =Themes!$F$5 -> 3 | BE21: 24 | BF21: 0 | BG21: =Themes!$F$6 -> 4 | BH21: 0 | BI21: 1 | BJ21: =Themes!$F$7 -> 40 | BK21: 40 | BL21: 2 | BM21: =Themes!$F$8 -> 20 | BN21: 40 | BO21: 0 | BP21: =Themes!$F$9 -> 80 | BQ21: 0 | BR21: 0 | BS21: =Themes!$F$10 -> 375 | BT21: 0 | BU21: 0 | BV21: =Themes!$F$11 -> 40 | BW21: 0 | BX21: 0 | BY21: =Themes!$F$12 -> 60 | BZ21: 0 | CA21: 0 | CB21: =Themes!$F$13 -> 70 | CC21: 0 | CD21: =(BW21+BT21+BQ21+BN21+BK21+BH21+BE21+BB21+AY21+AH21+AA21+T21+M21+BZ21+CC21) -> 125.962 | CE21: 151.1544
A22: قاعدة 13 | E22: =B22+Themes!$C$2 -> -5 | F22: 4 | G22: =C22+Themes!$C$3 -> -5 | H22: 4 | I22: =D22+Themes!C6 -> -1 | J22: 4 | K22: =((J22*I22)+(H22*G22)+(F22*E22))/100 -> -0.44 | L22: =K22*Themes!$D$2 -> -0.176 | M22: =L22*Themes!$F$2 -> -16.72 | N22: =B22+Themes!$C$6 -> -1 | O22: 2 | P22: =D22+Themes!C10 -> -4 | Q22: 2 | R22: =((Q22*P22)+(O22*N22))/100 -> -0.1 | S22: =R22*Themes!$D$6 -> -0.045 | T22: =S22*Themes!$F$2 -> -4.275 | U22: =B22+Themes!$C$10 -> -4 | V22: 0 | W22: =C22+Themes!$C$11 -> -4 | X22: 0 | Y22: =((X22*W22)+(V22*U22))/100 -> 0 | Z22: =Y22*Themes!$D$10 -> 0 | AA22: =Z22*Themes!$F$2 -> 0 | AB22: =B22+Themes!$C$12 -> -3 | AC22: 2 | AD22: =D22+Themes!$C$13 -> -13 | AE22: 2 | AF22: =((AE22*AD22)+(AC22*AB22))/100 -> -0.32 | AG22: =AF22*Themes!$D$12 -> -0.0384 | AH22: =AG22*Themes!$F$2 -> -3.648 | AI22: =B22+Themes!$N$1 -> -1 | AJ22: =D22+Themes!N2 -> -11 | AK22: 2 | AL22: =C22+Themes!$N$3 -> -1 | AM22: =D22+Themes!$N$4 -> -1 | AN22: 4 | AO22: =B22+Themes!$N$5 -> -1 | AP22: =C22+Themes!$N$6 -> -1 | AQ22: 4 | AR22: =B22+Themes!$N$7 -> -2 | AS22: =D22+Themes!N2 -> -11 | AT22: 2 | AU22: =B22+Themes!$N$9 -> -5 | AV22: =C22+Themes!$N$10 -> -5 | AW22: 0 | AX22: =((AW22*AV22*AU22)+(AT22*AS22*AR22)+(AQ22*AP22*AO22)+(AN22*AM22*AL22)+(AK22*AJ22*AI22))/10000 -> 0.0074 | AY22: =AX22*Themes!$F$3 -> 1.11 | AZ22: 8 | BA22: =Themes!$F$4 -> 7 | BB22: =BA22*AZ22 -> 56 | BC22: 4 | BD22: =Themes!$F$5 -> 3 | BE22: =BD22*BC22 -> 12 | BF22: 0 | BG22: =Themes!$F$6 -> 4 | BH22: =BG22*BF22 -> 0 | BI22: 1 | BJ22: =Themes!$F$7 -> 40 | BK22: =BJ22*BI22 -> 40 | BL22: 2 | BM22: =Themes!$F$8 -> 20 | BN22: =BM22*BL22 -> 40 | BO22: 0 | BP22: =Themes!$F$9 -> 80 | BQ22: =BP22*BO22 -> 0 | BR22: 0 | BS22: =Themes!$F$10 -> 375 | BT22: =BS22*BR22 -> 0 | BU22: 0 | BV22: =Themes!$F$11 -> 40 | BW22: =BV22*BU22 -> 0 | BX22: 0 | BY22: =Themes!$F$12 -> 60 | BZ22: =BY22*BX22 -> 0 | CA22: 0 | CB22: =Themes!$F$13 -> 70 | CC22: =CB22*CA22 -> 0 | CD22: 124.467 | CE22: 149.3604
A23: قاعدة 14 | E23: =B23+Themes!$C$2 -> -5 | F23: 4 | G23: =C23+Themes!$C$3 -> -5 | H23: 4 | I23: =D23+Themes!C7 -> -1.5 | J23: 4 | K23: -0.46 | L23: =K23*Themes!$D$2 -> -0.184 | M23: =L23*Themes!$F$2 -> -17.48 | N23: =(B23+Themes!$C$6)/2 -> -0.5 | O23: 4 | P23: =D23+Themes!C11 -> -4 | Q23: 4 | R23: -0.18 | S23: =R23*Themes!$D$6 -> -0.081 | T23: =S23*Themes!$F$2 -> -7.695 | U23: =B23+Themes!$C$10 -> -4 | V23: 2 | W23: =C23+Themes!$C$11 -> -4 | X23: 2 | Y23: -0.16 | Z23: =Y23*Themes!$D$10 -> -0.072 | AA23: =Z23*Themes!$F$2 -> -6.84 | AB23: =B23+Themes!$C$12 -> -3 | AC23: 2 | AD23: =D23+Themes!$C$13 -> -13 | AE23: 2 | AF23: -0.32 | AG23: =AF23*Themes!$D$12 -> -0.0384 | AH23: =AG23*Themes!$F$2 -> -3.648 | AI23: =B23+Themes!$N$1 -> -1 | AJ23: =D23+Themes!N3 -> -1 | AK23: 2 | AL23: =C23+Themes!$N$3 -> -1 | AM23: =D23+Themes!$N$4 -> -1 | AN23: 4 | AO23: =B23+Themes!$N$5 -> -1 | AP23: =C23+Themes!$N$6 -> -1 | AQ23: 4 | AR23: =(B23+Themes!$N$7)/2 -> -1 | AS23: =D23+Themes!N3 -> -1 | AT23: 4 | AU23: =B23+Themes!$N$9 -> -5 | AV23: =C23+Themes!$N$10 -> -5 | AW23: 2 | AX23: 0.0064 | AY23: =AX23*Themes!$F$3 -> 0.96 | AZ23: 8 | BA23: =Themes!$F$4 -> 7 | BB23: 56 | BC23: 12 | BD23: =Themes!$F$5 -> 3 | BE23: 36 | BF23: 0 | BG23: =Themes!$F$6 -> 4 | BH23: 0 | BI23: 2 | BJ23: =Themes!$F$7 -> 40 | BK23: 80 | BL23: 4 | BM23: =Themes!$F$8 -> 20 | BN23: 80 | BO23: 0 | BP23: =Themes!$F$9 -> 80 | BQ23: 0 | BR23: 0 | BS23: =Themes!$F$10 -> 375 | BT23: 0 | BU23: 0 | BV23: =Themes!$F$11 -> 40 | BW23: 0 | BX23: 0 | BY23: =Themes!$F$12 -> 60 | BZ23: 0 | CA23: 0 | CB23: =Themes!$F$13 -> 70 | CC23: 0 | CD23: 217.297 | CE23: 260.7564
A24: قاعدة 15 | E24: =B24+Themes!$C$2 -> -5 | F24: 4 | G24: =C24+Themes!$C$3 -> -5 | H24: 4 | I24: =D24+Themes!C8 -> -11 | J24: 4 | K24: =((J24*I24)+(H24*G24)+(F24*E24))/100 -> -0.84 | L24: =K24*Themes!$D$2 -> -0.336 | M24: =L24*Themes!$F$2 -> -31.92 | N24: =(B24+Themes!$C$6)/2 -> -0.5 | O24: 4 | P24: =D24+Themes!C12 -> -3 | Q24: 4 | R24: =((Q24*P24)+(O24*N24))/100 -> -0.14 | S24: =R24*Themes!$D$6 -> -0.063 | T24: =S24*Themes!$F$2 -> -5.985 | U24: =B24+Themes!$C$10 -> -4 | V24: 0 | W24: =C24+Themes!$C$11 -> -4 | X24: 0 | Y24: =((X24*W24)+(V24*U24))/100 -> 0 | Z24: =Y24*Themes!$D$10 -> 0 | AA24: =Z24*Themes!$F$2 -> 0 | AB24: =B24+Themes!$C$12 -> -3 | AC24: 2 | AD24: =D24+Themes!$C$13 -> -13 | AE24: 2 | AF24: =((AE24*AD24)+(AC24*AB24))/100 -> -0.32 | AG24: =AF24*Themes!$D$12 -> -0.0384 | AH24: =AG24*Themes!$F$2 -> -3.648 | AI24: =B24+Themes!$N$1 -> -1 | AJ24: =D24+Themes!N4 -> -1 | AK24: 2 | AL24: =C24+Themes!$N$3 -> -1 | AM24: =D24+Themes!$N$4 -> -1 | AN24: 4 | AO24: =B24+Themes!$N$5 -> -1 | AP24: =C24+Themes!$N$6 -> -1 | AQ24: 4 | AR24: =(B24+Themes!$N$7)/2 -> -1 | AS24: =D24+Themes!N4 -> -1 | AT24: 4 | AU24: =B24+Themes!$N$9 -> -5 | AV24: =C24+Themes!$N$10 -> -5 | AW24: 0 | AX24: =((AW24*AV24*AU24)+(AT24*AS24*AR24)+(AQ24*AP24*AO24)+(AN24*AM24*AL24)+(AK24*AJ24*AI24))/10000 -> 0.0014 | AY24: =AX24*Themes!$F$3 -> 0.21 | AZ24: 8 | BA24: =Themes!$F$4 -> 7 | BB24: =BA24*AZ24 -> 56 | BC24: 8 | BD24: =Themes!$F$5 -> 3 | BE24: =BD24*BC24 -> 24 | BF24: 0 | BG24: =Themes!$F$6 -> 4 | BH24: =BG24*BF24 -> 0 | BI24: 2 | BJ24: =Themes!$F$7 -> 40 | BK24: =BJ24*BI24 -> 80 | BL24: 4 | BM24: =Themes!$F$8 -> 20 | BN24: =BM24*BL24 -> 80 | BO24: 0 | BP24: =Themes!$F$9 -> 80 | BQ24: =BP24*BO24 -> 0 | BR24: 0 | BS24: =Themes!$F$10 -> 375 | BT24: =BS24*BR24 -> 0 | BU24: 0 | BV24: =Themes!$F$11 -> 40 | BW24: =BV24*BU24 -> 0 | BX24: 0 | BY24: =Themes!$F$12 -> 60 | BZ24: =BY24*BX24 -> 0 | CA24: 0 | CB24: =Themes!$F$13 -> 70 | CC24: =CB24*CA24 -> 0 | CD24: 198.657 | CE24: 238.3884
A25: قاعدة 16 | E25: =B25+Themes!$C$2 -> -5 | F25: 4 | G25: =C25+Themes!$C$3 -> -5 | H25: 4 | I25: =D25+Themes!C9 -> -1 | J25: 4 | K25: -0.44 | L25: =K25*Themes!$D$2 -> -0.176 | M25: =L25*Themes!$F$2 -> -16.72 | N25: =B25+Themes!$C$6 -> -1 | O25: 2 | P25: =D25+Themes!C13 -> -13 | Q25: 2 | R25: -0.28 | S25: =R25*Themes!$D$6 -> -0.126 | T25: =S25*Themes!$F$2 -> -11.97 | U25: =B25+Themes!$C$10 -> -4 | V25: 0 | W25: =C25+Themes!$C$11 -> -4 | X25: 0 | Y25: 0 | Z25: =Y25*Themes!$D$10 -> 0 | AA25: =Z25*Themes!$F$2 -> 0 | AB25: =B25+Themes!$C$12 -> -3 | AC25: 2 | AD25: =D25+Themes!$C$13 -> -13 | AE25: 2 | AF25: -0.32 | AG25: =AF25*Themes!$D$12 -> -0.0384 | AH25: =AG25*Themes!$F$2 -> -3.648 | AI25: =B25+Themes!$N$1 -> -1 | AJ25: =D25+Themes!N5 -> -1 | AK25: 2 | AL25: =C25+Themes!$N$3 -> -1 | AM25: =D25+Themes!$N$4 -> -1 | AN25: 4 | AO25: =B25+Themes!$N$5 -> -1 | AP25: =C25+Themes!$N$6 -> -1 | AQ25: 4 | AR25: =B25+Themes!$N$7 -> -2 | AS25: =D25+Themes!N5 -> -1 | AT25: 2 | AU25: =B25+Themes!$N$9 -> -5 | AV25: =C25+Themes!$N$10 -> -5 | AW25: 0 | AX25: 0.0014 | AY25: =AX25*Themes!$F$3 -> 0.21 | AZ25: 8 | BA25: =Themes!$F$4 -> 7 | BB25: 56 | BC25: 4 | BD25: =Themes!$F$5 -> 3 | BE25: 12 | BF25: 0 | BG25: =Themes!$F$6 -> 4 | BH25: 0 | BI25: 1 | BJ25: =Themes!$F$7 -> 40 | BK25: 40 | BL25: 2 | BM25: =Themes!$F$8 -> 20 | BN25: 40 | BO25: 0 | BP25: =Themes!$F$9 -> 80 | BQ25: 0 | BR25: 0 | BS25: =Themes!$F$10 -> 375 | BT25: 0 | BU25: 2 | BV25: =Themes!$F$11 -> 40 | BW25: 80 | BX25: 0 | BY25: =Themes!$F$12 -> 60 | BZ25: 0 | CA25: 0 | CB25: =Themes!$F$13 -> 70 | CC25: 0 | CD25: 195.872 | CE25: 235.0464
A26: قاعدة 17 | E26: =B26+Themes!$C$2 -> -5 | F26: 4 | G26: =C26+Themes!$C$3 -> -5 | H26: 4 | I26: =D26+Themes!C10 -> -4 | J26: 4 | K26: -0.56 | L26: =K26*Themes!$D$2 -> -0.224 | M26: =L26*Themes!$F$2 -> -21.28 | N26: =(B26+Themes!$C$6)/2 -> -0.5 | O26: 4 | P26: =D26+Themes!C14 -> -3 | Q26: 4 | R26: -0.14 | S26: =R26*Themes!$D$6 -> -0.063 | T26: =S26*Themes!$F$2 -> -5.985 | U26: =B26+Themes!$C$10 -> -4 | V26: 2 | W26: =C26+Themes!$C$11 -> -4 | X26: 2 | Y26: -0.16 | Z26: =Y26*Themes!$D$10 -> -0.072 | AA26: =Z26*Themes!$F$2 -> -6.84 | AB26: =B26+Themes!$C$12 -> -3 | AC26: 2 | AD26: =D26+Themes!$C$13 -> -13 | AE26: 2 | AF26: -0.32 | AG26: =AF26*Themes!$D$12 -> -0.0384 | AH26: =AG26*Themes!$F$2 -> -3.648 | AI26: =B26+Themes!$N$1 -> -1 | AJ26: =D26+Themes!N6 -> -1 | AK26: 2 | AL26: =C26+Themes!$N$3 -> -1 | AM26: =D26+Themes!$N$4 -> -1 | AN26: 4 | AO26: =B26+Themes!$N$5 -> -1 | AP26: =C26+Themes!$N$6 -> -1 | AQ26: 4 | AR26: =(B26+Themes!$N$7)/2 -> -1 | AS26: =D26+Themes!N6 -> -1 | AT26: 4 | AU26: =B26+Themes!$N$9 -> -5 | AV26: =C26+Themes!$N$10 -> -5 | AW26: 2 | AX26: 0.0064 | AY26: =AX26*Themes!$F$3 -> 0.96 | AZ26: 8 | BA26: =Themes!$F$4 -> 7 | BB26: 56 | BC26: 12 | BD26: =Themes!$F$5 -> 3 | BE26: 36 | BF26: 0 | BG26: =Themes!$F$6 -> 4 | BH26: 0 | BI26: 2 | BJ26: =Themes!$F$7 -> 40 | BK26: 80 | BL26: 4 | BM26: =Themes!$F$8 -> 20 | BN26: 80 | BO26: 0 | BP26: =Themes!$F$9 -> 80 | BQ26: 0 | BR26: 0 | BS26: =Themes!$F$10 -> 375 | BT26: 0 | BU26: 4 | BV26: =Themes!$F$11 -> 40 | BW26: 160 | BX26: 0 | BY26: =Themes!$F$12 -> 60 | BZ26: 0 | CA26: 0 | CB26: =Themes!$F$13 -> 70 | CC26: 0 | CD26: 375.207 | CE26: 450.2484

Sheet Themes (hidden)
C1: الومنيوم | D1: اوزان | F1: $ | G1: Column1 | N1: -1
C2: -5 | D2: 0.4 | F2: 95 | N2: -11
C3: -5 | F3: 150 | N3: -1
C4: -15 | F4: 7 | N4: -1
C5: -5 | F5: 3 | N5: -1
C6: -1 | D6: 0.45 | F6: 4 | N6: -1
C7: -1.5 | F7: 40 | N7: -2
C8: -11 | F8: 20 | N8: -12
C9: -1 | F9: 80 | N9: -5
C10: -4 | D10: 0.45 | F10: 375 | N10: -5
C11: -4 | F11: 40 | N11: -2
C12: -3 | D12: 0.12 | F12: 60
C13: -13 | F13: 70
C14: -3

Sheet DATA (hidden)
I1: أحمر | K1: السيد /
I2: أخضر | K2: السيدة /
I3: أصفر
I4: أسود أسواني
I5: سلفر
I6: بني
